fUST/lending_fUST_20260412
["ID","MTS","AMOUNT","RATE_DAILY","PERIOD"]
[420335441,1775989846925,-500.0,0.00011998,2]
[420335443,1775989846942,-500.0,0.00011998,2]
[420335446,1775989846955,-461.01289216,0.00011998,2]
[420335447,1775989846969,-500.0,0.00011998,2]
[420335450,1775989846982,-500.0,0.00011998,2]
[420335452,1775989846994,-500.0,0.00011998,2]
[420335467,1775989847188,-500.0,0.00011998,2]
[420335468,1775989847198,-500.0,0.00011998,2]
[420335470,1775989847207,-500.0,0.00011998,2]
[420335473,1775989847219,-500.0,0.00011998,2]
[420335475,1775989847241,-500.0,0.00011998,2]
[420335477,1775989847250,-152.35413907,0.00011998,2]
[420335479,1775989847263,-500.0,0.00011998,2]
[420335480,1775989847285,-500.0,0.00011998,2]
[420335481,1775989847295,-500.0,0.00011998,2]
[420335483,1775989847310,-500.0,0.00011998,2]
[420335485,1775989847329,-500.0,0.00011998,2]
[420335486,1775989847339,-3102.55158,0.00012,2]
[420335487,1775989847354,-179.7,0.00012329,2]
[420335488,1775989847367,-898.53,0.00012329,2]
[420335489,1775989847380,-151.5,0.00012817,14]
[420335490,1775989847397,-500.0,0.00012817,14]
[420335491,1775989847408,-500.0,0.00012817,14]
[420335492,1775989847418,-500.0,0.00012817,14]
[420335493,1775989847431,-193.35674562,0.00012817,14]
[420335494,1775989847443,-500.0,0.00012817,14]
[420335495,1775989847455,-500.0,0.00012817,14]
[420335496,1775989847463,-500.0,0.00012817,14]
[420335497,1775989847475,-500.0,0.00012817,14]
[420335498,1775989847491,-500.0,0.00012817,14]
[420335499,1775989847500,-500.0,0.00012817,14]
[420335500,1775989847510,-500.0,0.00012817,14]
[420335501,1775989847521,-500.0,0.00012817,14]
[420335502,1775989847541,-511.88719297,0.00012817,14]
[420335503,1775989847551,-500.0,0.00012817,14]
[420335504,1775989847564,-500.0,0.00012817,14]
[420335505,1775989847584,-500.0,0.00012817,14]
[420335506,1775989847595,-500.0,0.00012817,14]
[420335507,1775989847611,-500.0,0.00012817,14]
[420335508,1775989847626,-500.10941105,0.00012817,14]
[420335509,1775989847635,-615.14022596,0.000129,2]
[420335510,1775989847647,-615.1402259,0.000129,2]
[420335511,1775989847664,-400.0,0.00012999,2]
[420335512,1775989847675,-6538.0,0.00013,2]
[420335513,1775989847685,-30000.0,0.00013,2]
[420335514,1775989847706,-3102.55158,0.00013,2]
[420335515,1775989847715,-615.1402259,0.00013148,2]
[420335516,1775989847725,-180.22777684,0.00013365,14]
[420335517,1775989847742,-441.0,0.00013634,2]
[420335518,1775989847755,-184.0,0.00013634,2]
[420335519,1775989847767,-500.0,0.00013698,2]
[420335520,1775989847776,-500.0,0.00013698,2]
[420335521,1775989847799,-500.0,0.00013698,2]
[420335522,1775989847812,-500.0,0.00013698,2]
[420335523,1775989847822,-2083.42,0.00013698,2]
[420335524,1775989847847,-2083.42,0.00013698,2]
[420335525,1775989847857,-2083.42,0.00013698,2]
[420335526,1775989847868,-2083.42,0.00013698,2]
[420335527,1775989847883,-2083.42,0.00013698,2]
[420335528,1775989847895,-2083.42,0.00013698,2]
[420335529,1775989847905,-2083.42,0.00013698,2]
[420335530,1775989847918,-2083.42,0.00013698,2]
[420335531,1775989847935,-2083.42,0.00013698,2]
[420335532,1775989847946,-589.30164078,0.00013698,2]
[420335533,1775989847958,-500.0,0.00013698,2]
[420335534,1775989847970,-500.0,0.00013698,2]
[420335535,1775989847985,-500.0,0.00013698,2]
[420335536,1775989847999,-500.0,0.00013698,2]
[420335537,1775989848011,-500.0,0.00013698,2]
[420335538,1775989848027,-500.0,0.00013698,2]
[420335539,1775989848043,-500.0,0.00013698,2]
[420335540,1775989848057,-532.27113819,0.00013698,2]
[420335541,1775989848079,-529.92670715,0.00013698,2]
[420335542,1775989848095,-429.8850478,0.00013699,2]
[420335543,1775989848118,-1000.0,0.00013699,2]
[420335544,1775989848127,-231.0,0.00013996,2]
[420335545,1775989848142,-10000.0,0.000145,7]
[420335546,1775989848172,-545.0,0.00014702,2]
[420335547,1775989848194,-156.0,0.00014702,2]
[420335548,1775989848215,-677.0,0.00014702,2]
[420335549,1775989848243,-226.0,0.00014702,2]
[420335550,1775989848255,-274.7,0.00015,2]
[420335551,1775989848282,-402.36690842,0.00015,2]
[420335552,1775989848295,-793.0,0.00015,2]
[420335553,1775989848312,-215.01,0.00015,2]
[420335554,1775989848326,-2150.738,0.00015161,2]
[420335555,1775989848343,-2083.42,0.00015199,2]
[420335556,1775989848355,-2083.42,0.00015199,2]
[420335557,1775989848370,-2083.42,0.00015199,2]
[420335558,1775989848384,-160.99285191,0.00015199,2]
[420335559,1775989848399,-500.0,0.00015199,2]
[420335560,1775989848412,-268.13961194,0.00015199,2]
[420335561,1775989848422,-53556.42380665,0.000152,2]
[420335562,1775989848443,-456.452,0.00015213,2]
[420335563,1775989848454,-160.0,0.00015293,2]
[420335564,1775989848464,-151.0,0.000156,2]
[420335565,1775989848479,-168.0,0.00015627,2]
[420335566,1775989848491,-545.0,0.00015702,2]
[420335567,1775989848501,-156.0,0.00015702,2]
[420335568,1775989848511,-677.0,0.00015702,2]
[420335569,1775989848523,-226.0,0.00015702,2]
[420335570,1775989848536,-2230.315306,0.00015709,2]
[420335571,1775989848545,-258.0,0.00015996,2]
[420335572,1775989848562,-2083.42,0.00015999,2]
[420335573,1775989848576,-2698.564037,0.00016,2]
[420335574,1775989848587,-1408.05262228,0.00016109,2]
[420335575,1775989848600,-168.0,0.0001613,2]
[420335576,1775989848611,-152.0,0.00016181,7]
[420335577,1775989848624,-151.0,0.000162,2]
[420335578,1775989848636,-1874.80524224,0.00016257,2]
[420335579,1775989848650,-228.264823,0.00016378,7]
[420335580,1775989848666,-159.195,0.00016436,2]
[420335581,1775989848677,-2083.42,0.00016436,2]
[420335582,1775989848690,-2083.42,0.00016437,2]
[420335583,1775989848703,-2083.42,0.00016437,2]
[420335584,1775989848714,-2083.42,0.00016437,2]
[420335585,1775989848724,-2083.42,0.00016437,2]
[420335586,1775989848740,-2083.42,0.00016437,2]
[420335587,1775989848754,-2083.42,0.00016437,2]
[420335588,1775989848768,-2083.42,0.00016437,2]
[420335589,1775989848788,-2083.42,0.00016437,2]
[420335590,1775989848803,-2083.42,0.00016437,2]
[420335591,1775989848826,-2083.63920554,0.00016437,2]
[420335592,1775989848835,-804.4213,0.00016438,2]
[420335593,1775989848857,-249.99465903,0.00016438,2]
[420335594,1775989848875,-500.0,0.00016438,2]
[420335595,1775989848896,-500.0,0.00016438,2]
[420335596,1775989848916,-500.0,0.00016438,2]
[420335597,1775989848930,-500.0,0.00016438,2]
[420335598,1775989848959,-500.0,0.00016438,2]
[420335599,1775989848972,-500.0,0.00016438,2]
[420335600,1775989849000,-579.47,0.00016438,2]
[420335601,1775989849010,-548.85518457,0.00016438,2]
[420335602,1775989849027,-500.0,0.00016438,2]
[420335603,1775989849041,-1000.0,0.00016438,2]
[420335604,1775989849051,-500.0,0.00016438,2]
[420335605,1775989849067,-500.0,0.00016438,2]
[420335606,1775989849082,-500.0,0.00016438,2]
[420335607,1775989849092,-500.0,0.00016438,2]
[420335608,1775989849103,-500.0,0.00016438,2]
[420335609,1775989849123,-507.08473999,0.00016438,2]
[420335610,1775989849134,-1188.38,0.00016438,2]
[420335611,1775989849145,-500.0,0.00016438,2]
[420335612,1775989849160,-500.0,0.00016438,2]
[420335613,1775989849172,-500.0,0.00016438,2]
[420335614,1775989849182,-500.0,0.00016438,2]
[420335615,1775989849193,-500.0,0.00016438,2]
[420335616,1775989849202,-500.0,0.00016438,2]
[420335617,1775989849214,-500.0,0.00016438,2]
[420335618,1775989849225,-1000.0,0.00016438,2]
[420335619,1775989849236,-500.0,0.00016438,2]
[420335620,1775989849246,-500.0,0.00016438,2]
[420335621,1775989849257,-500.0,0.00016438,2]
[420335622,1775989849269,-500.0,0.00016438,2]
[420335623,1775989849278,-500.0,0.00016438,2]
[420335624,1775989849288,-500.0,0.00016438,2]
[420335625,1775989849299,-500.0,0.00016438,2]
[420335626,1775989849310,-151.33704277,0.00016438,2]
[420335627,1775989849322,-1189.43,0.00016438,2]
[420335628,1775989849332,-500.0,0.00016438,2]
[420335629,1775989849343,-500.0,0.00016438,2]
[420335630,1775989849355,-500.0,0.00016438,2]
[420335631,1775989849368,-500.0,0.00016438,2]
[420335632,1775989849379,-500.0,0.00016438,2]
[420335633,1775989849394,-881.53,0.00016438,2]
[420335634,1775989849407,-500.0,0.00016438,2]
[420335635,1775989849418,-500.0,0.00016438,2]
[420335636,1775989849428,-500.0,0.00016438,2]
[420335637,1775989849450,-500.0,0.00016438,2]
[420335638,1775989849462,-500.0,0.00016438,2]
[420335639,1775989849472,-500.0,0.00016438,2]
[420335640,1775989849496,-606.57,0.00016438,2]
[420335641,1775989849511,-501.71919571,0.00016438,2]
[420335642,1775989849522,-6367.48,0.00016438,2]
[420335643,1775989849555,-500.0,0.00016438,2]
[420335644,1775989849566,-500.0,0.00016438,2]
[420335645,1775989849602,-500.0,0.00016438,2]
[420335646,1775989849616,-500.0,0.00016438,2]
[420335647,1775989849647,-500.0,0.00016438,2]
[420335648,1775989849669,-500.0,0.00016438,2]
[420335649,1775989849690,-500.0,0.00016438,2]
[420335650,1775989849703,-500.0,0.00016438,2]
[420335651,1775989849728,-500.0,0.00016438,2]
[420335652,1775989849739,-500.0,0.00016438,2]
[420335653,1775989849754,-349.73083684,0.00016438,2]
[420335654,1775989849773,-2220.35,0.00016438,2]
[420335655,1775989849783,-500.0,0.00016438,2]
[420335656,1775989849797,-500.0,0.00016438,2]
[420335657,1775989849811,-5064.13,0.00016438,2]
[420335658,1775989849823,-500.0,0.00016438,2]
[420335659,1775989849834,-500.0,0.00016438,2]
[420335660,1775989849845,-500.0,0.00016438,2]
[420335661,1775989849862,-500.0,0.00016438,2]
[420335662,1775989849874,-500.0,0.00016438,2]
[420335663,1775989849884,-2809.2,0.00016438,2]
[420335664,1775989849895,-500.0,0.00016438,2]
[420335665,1775989849909,-500.0,0.00016438,2]
[420335666,1775989849921,-500.0,0.00016438,2]
[420335667,1775989849931,-453.17573161,0.00016438,2]
[420335668,1775989849946,-7770.07,0.00016438,2]
[420335669,1775989849955,-500.0,0.00016438,2]
[420335670,1775989849966,-500.0,0.00016438,2]
[420335671,1775989849975,-193.30195587,0.00016438,2]
[420335672,1775989849987,-500.0,0.00016438,2]
[420335673,1775989849997,-500.0,0.00016438,2]
[420335674,1775989850006,-500.0,0.00016438,2]
[420335675,1775989850016,-212.47709395,0.00016438,2]
[420335676,1775989850025,-500.0,0.00016438,2]
[420335677,1775989850038,-500.0,0.00016438,2]
[420335678,1775989850047,-500.0,0.00016438,2]
[420335679,1775989850057,-306.34573398,0.00016438,2]
[420335680,1775989850066,-579.07,0.00016438,2]
[420335681,1775989850079,-500.0,0.00016438,2]
[420335682,1775989850089,-300.0,0.00016438,2]
[420335683,1775989850100,-500.0,0.00016438,2]
[420335684,1775989850109,-217.46639076,0.00016438,2]
[420335685,1775989850123,-500.0,0.00016438,2]
[420335686,1775989850134,-500.0,0.00016438,2]
[420335687,1775989850145,-658.12,0.00016438,2]
[420335688,1775989850154,-500.0,0.00016438,2]
[420335689,1775989850170,-500.0,0.00016438,2]
[420335690,1775989850180,-500.0,0.00016438,2]
[420335691,1775989850191,-500.0,0.00016438,2]
[420335692,1775989850203,-500.0,0.00016438,2]
[420335693,1775989850215,-500.0,0.00016438,2]
[420335694,1775989850224,-500.0,0.00016438,2]
[420335695,1775989850239,-500.0,0.00016438,2]
[420335696,1775989850249,-500.0,0.00016438,2]
[420335697,1775989850261,-500.0,0.00016438,2]
[420335698,1775989850270,-5531.0,0.00016438,2]
[420335699,1775989850282,-579.56,0.00016438,2]
[420335700,1775989850295,-500.0,0.00016438,2]
[420335701,1775989850305,-500.0,0.00016438,2]
[420335702,1775989850314,-500.0,0.00016438,2]
[420335703,1775989850332,-500.0,0.00016438,2]
[420335704,1775989850346,-500.0,0.00016438,2]
[420335705,1775989850354,-500.0,0.00016438,2]
[420335706,1775989850373,-500.0,0.00016438,2]
[420335707,1775989850387,-4412.38,0.00016438,2]
[420335708,1775989850396,-500.0,0.00016438,2]
[420335709,1775989850411,-500.0,0.00016438,2]
[420335710,1775989850428,-500.0,0.00016438,2]
[420335711,1775989850439,-500.0,0.00016438,2]
[420335712,1775989850452,-500.0,0.00016438,2]
[420335713,1775989850466,-500.0,0.00016438,2]
[420335714,1775989850478,-7024.02,0.00016438,2]
[420335715,1775989850487,-500.0,0.00016438,2]
[420335716,1775989850502,-460.67470663,0.00016438,2]
[420335717,1775989900541,-2994.18820615,0.00010359,2]
[420335802,1775991032409,-433.45811007,8.531e-05,2]
[420335808,1775991032467,-1572.35368378,8.531e-05,2]
[420335810,1775991032484,-5000.0,8.617e-05,2]
[420335812,1775991032494,-541.0,8.617e-05,2]
[420335814,1775991032509,-5000.0,8.704e-05,2]
[420335816,1775991032527,-489.6546739,9.062e-05,2]
[420335818,1775991032541,-177.0,0.00010926,2]
[420335820,1775991032554,-204.0,0.00012926,2]
[420335821,1775991032572,-300.0,0.0001344,2]
[420335824,1775991032588,-156.0,0.00013699,2]
[420335826,1775991032597,-1000.0,0.00013699,2]
[420335828,1775991032619,-441.0,0.00013759,2]
[420335831,1775991032635,-184.0,0.00013759,2]
[420335834,1775991032644,-215.3158249,0.00013762,2]
[420335837,1775991032677,-395.610703,0.00014799,2]
[420335840,1775991032687,-231.0,0.00014926,2]
[420335841,1775991032706,-160.0,0.00015,2]
[420335844,1775991032747,-636.0,0.00015025,2]
[420335845,1775991032762,-914.0,0.00015025,2]
[420335847,1775991032783,-395.610703,0.00015422,2]
[420335849,1775991032801,-395.610703,0.00016045,2]
[420335850,1775991032811,-428.51635938,0.00016109,2]
[420335889,1775991038834,-838.0,0.00016109,2]
[420335891,1775991038846,-795.86296173,0.00016109,2]
[420335892,1775991038855,-586.0,0.0001613,2]
[420335894,1775991038871,-586.0,0.0001613,2]
[420335896,1775991038885,-586.0,0.0001613,2]
[420335897,1775991038896,-586.0,0.0001613,2]
[420335899,1775991038910,-586.0,0.0001613,2]
[420335901,1775991038933,-586.0,0.0001613,2]
[420335902,1775991038942,-586.0,0.0001613,2]
[420335904,1775991038958,-586.0,0.0001613,2]
[420335906,1775991038980,-586.0,0.0001613,2]
[420335908,1775991038989,-586.0,0.0001613,2]
[420335910,1775991039012,-384.46264124,0.00016136,2]
[420335911,1775991039025,-800.0,0.00016209,2]
[420335913,1775991039050,-500.0,0.00016236,2]
[420335915,1775991039062,-500.0,0.00016236,2]
[420335916,1775991039071,-500.0,0.00016236,2]
[420335918,1775991039093,-439.44272883,0.00016236,2]
[420335919,1775991039104,-500.0,0.00016236,2]
[420335921,1775991039113,-490.40362457,0.00016236,2]
[420335923,1775991039128,-647.42848005,0.00016236,2]
[420335924,1775991039146,-500.0,0.00016236,2]
[420335926,1775991039155,-500.0,0.00016236,2]
[420335928,1775991039169,-500.0,0.00016236,2]
[420335929,1775991039180,-500.0,0.00016236,2]
[420335931,1775991039196,-500.0,0.00016236,2]
[420335932,1775991039205,-500.0,0.00016236,2]
[420335933,1775991039214,-500.0,0.00016236,2]
[420335935,1775991039223,-500.0,0.00016236,2]
[420335936,1775991039239,-500.0,0.00016236,2]
[420335938,1775991039249,-500.0,0.00016236,2]
[420335939,1775991039258,-500.0,0.00016236,2]
[420335940,1775991039271,-500.0,0.00016236,2]
[420335941,1775991039284,-500.0,0.00016236,2]
[420335942,1775991039294,-500.0,0.00016236,2]
[420335943,1775991039303,-350.0,0.00016236,2]
[420335944,1775991039314,-500.0,0.00016236,2]
[420335945,1775991039329,-500.0,0.00016236,2]
[420335946,1775991039339,-500.0,0.00016236,2]
[420335947,1775991039349,-500.0,0.00016236,2]
[420335948,1775991039363,-236.68909784,0.00016236,2]
[420335949,1775991039380,-500.0,0.00016236,2]
[420335950,1775991039390,-500.0,0.00016236,2]
[420335951,1775991039402,-531.60155339,0.00016236,2]
[420335952,1775991039420,-741452.40070957,0.00016237,2]
[420335953,1775991039430,-487.0,0.00016237,2]
[420335954,1775991039446,-758.52,0.00016237,2]
[420335955,1775991039461,-2826.81153581,0.00016238,2]
[420335956,1775991039477,-417619.7395231,0.00016238,2]
[420335978,1775991041416,-5000.0,0.00015948,2]
[420335980,1775991041426,-142.75770885,0.00016109,2]
[420335982,1775991041444,-387.81759897,0.00016109,2]
[420335984,1775991041455,-841.0,0.00016238,2]
[420335986,1775991041467,-320.78415013,0.00016238,2]
[420336027,1775991043846,-771.0,0.00016238,2]
[420336028,1775991043863,-13788.34357715,0.00016238,2]
[420336040,1775991046832,-837.71317048,0.00016109,2]
[420336045,1775991046951,-175.85154221,0.00016109,2]
[420336046,1775991046961,-742.0,0.00016238,2]
[420336047,1775991046972,-925.66252379,0.00016238,2]
[420336048,1775991047038,-13700.12653948,0.00016238,2]
[420336055,1775991700012,-1769.85824514,0.00010691,2]
[420336067,1775992233582,-5000.0,9.762e-05,2]
[420336068,1775992233620,-557.0,9.762e-05,2]
[420336069,1775992233636,-5000.0,9.861e-05,2]
[420336070,1775992233706,-3266.1165735,9.961e-05,2]
[420336071,1775992233745,-300.0,0.00010062,2]
[420336072,1775992233756,-300.0,0.00010164,2]
[420336073,1775992233771,-420.0,0.00011068,2]
[420336074,1775992233815,-420.0,0.0001118,2]
[420336075,1775992233847,-177.0,0.00012062,2]
[420336076,1775992233883,-587.0,0.00012173,2]
[420336077,1775992233918,-587.0,0.00012298,2]
[420336079,1775992233975,-250.0,0.00013295,2]
[420336081,1775992233986,-184.0,0.00013297,2]
[420336082,1775992234027,-433.469,0.00013297,2]
[420336083,1775992234067,-823.0,0.00013528,2]
[420336084,1775992234089,-1000.0,0.00013699,2]
[420336086,1775992234112,-204.0,0.00014063,2]
[420336088,1775992234141,-165.806354,0.00014449,2]
[420336090,1775992234163,-600.41133464,0.00014794,2]
[420336092,1775992234174,-1152.0,0.00014881,2]
[420336094,1775992234207,-743.0,0.00015,2]
[420336096,1775992234217,-160.0,0.00015,2]
[420336098,1775992234255,-250.0,0.00015068,2]
[420336100,1775992234266,-196.3945489,0.00015325,2]
[420336103,1775992234293,-325.203591,0.00015325,2]
[420336105,1775992234333,-537.6845,0.00015359,2]
[420336106,1775992234365,-1850.13487125,0.00015359,2]
[420336109,1775992234378,-2150.738,0.00015359,2]
[420336111,1775992234427,-441.7366735,0.00015414,2]
[420336113,1775992234438,-521.3632337,0.00015962,2]
[420336114,1775992234454,-800.0,0.0001603,2]
[420336116,1775992234479,-39428.4262188,0.00016038,2]
[420336119,1775992234495,-108141.68259439,0.00016038,2]
[420336191,1775992239067,-712.0,0.00016038,2]
[420336192,1775992239077,-49274.56031463,0.00016038,2]
[420336193,1775992239099,-5675.334293,0.00016038,2]
[420336198,1775992242510,-1679.46284807,0.00015878,2]
[420336215,1775992244188,-1790.70963771,0.00015878,2]
[420336216,1775992244265,-1529.82751422,0.00015878,2]
[420336217,1775992244275,-437.56733026,0.00016038,2]
[420336234,1775992247110,-16.35845034,0.00016038,2]
[420336235,1775992247145,-620.64154966,0.00016038,2]
[420336236,1775992247154,-2588.00317297,0.00016038,2]
[420336237,1775992247166,-2118.01583545,0.00016038,2]
[420336323,1775993438776,-4307.71481621,0.00011426,2]
[420336793,1775993446491,-692.28518379,0.00011426,2]
[420336795,1775993446530,-5000.0,0.00011541,2]
[420336797,1775993446551,-582.0,0.00011541,2]
[420336799,1775993446565,-3406.09063901,0.00011658,2]
[420336978,1775993448989,-1593.90936099,0.00011658,2]
[420336980,1775993449009,-300.0,0.00011776,2]
[420336982,1775993449048,-207.0,0.00011776,2]
[420336984,1775993449072,-300.0,0.00011776,2]
[420336985,1775993449108,-1200.0,0.00011776,2]
[420336988,1775993449136,-300.0,0.00011776,2]
[420336990,1775993449158,-420.0,0.00012954,2]
[420336993,1775993449195,-2365.62425718,0.00013489,2]
[420337942,1775994632111,-328.93909042,0.00010916,2]
[420338001,1775994641116,-751.0865,0.00010916,2]
[420338003,1775994641129,-2290.490239,0.00010916,2]
[420338023,1775994643501,-1629.48417058,0.00010916,2]
[420338024,1775994643513,-573.0,0.00010916,2]
[420338025,1775994643532,-1498.57404513,0.00011026,2]
[420338029,1775994646580,-2328.04506166,0.00010916,2]
[420338035,1775995280630,-828.3480474,9.971e-05,2]
[420338106,1775995846765,-425.29075935,9.107e-05,2]
[420338107,1775995846779,-548.0,9.107e-05,2]
[420338108,1775995846819,-300.0,9.198e-05,2]
[420338109,1775995846859,-300.0,9.198e-05,2]
[420338110,1775995846878,-1200.0,9.198e-05,2]
[420338111,1775995846912,-5000.0,9.199e-05,2]
[420338112,1775995846924,-371.0998382,9.292e-05,2]
[420338113,1775995846957,-4628.9001618,9.292e-05,2]
[420338114,1775995846971,-300.0,9.385e-05,2]
[420338115,1775995846992,-300.0,9.385e-05,2]
[420338116,1775995847004,-3411.70137871,0.0001,2]
[420338117,1775995847021,-340.8749737,0.0001,2]
[420338118,1775995847035,-479.77322589,0.00010072,2]
[420338119,1775995847048,-420.0,0.00010118,2]
[420338120,1775995847071,-420.0,0.00010324,2]
[420338121,1775995847089,-300.0,0.00010482,2]
[420338122,1775995847101,-300.0,0.00010482,2]
[420338123,1775995847114,-300.0,0.00010482,2]
[420338124,1775995847130,-300.0,0.00010482,2]
[420338125,1775995847142,-300.0,0.00010482,2]
[420338126,1775995847154,-300.0,0.00010482,2]
[420338127,1775995847173,-300.0,0.00010482,2]
[420338128,1775995847185,-300.0,0.00010482,2]
[420338129,1775995847199,-300.0,0.00010482,2]
[420338130,1775995847215,-300.0,0.00010482,2]
[420338131,1775995847226,-300.0,0.00010482,2]
[420338132,1775995847240,-300.0,0.00010482,2]
[420338133,1775995847253,-300.0,0.00010482,2]
[420338134,1775995847264,-300.0,0.00010482,2]
[420338135,1775995847277,-300.0,0.00010482,2]
[420338136,1775995847291,-600.0,0.00010691,2]
[420338137,1775995847302,-265.374793,0.00010742,2]
[420338138,1775995847311,-587.0,0.0001113,2]
[420338139,1775995847321,-300.0,0.00011198,2]
[420338140,1775995847336,-587.0,0.00011356,2]
[420338141,1775995847349,-177.0,0.00011529,2]
[420338142,1775995847362,-250.0,0.00011705,2]
[420338143,1775995847377,-720.0,0.0001176,2]
[420338144,1775995847389,-527.480937,0.0001205,2]
[420338145,1775995847403,-686.0,0.00012243,2]
[420338146,1775995847416,-823.0,0.00012491,2]
[420338147,1775995847428,-527.480937,0.00012558,2]
[420338148,1775995847445,-693.06952768,0.00012914,2]
[420338209,1775997033269,-368.35170898,9.159e-05,2]
[420338980,1775997081941,-1292.05651286,9.159e-05,2]
[420338983,1775997416205,500.0,2.001e-05,2]
[420338984,1775997416267,500.0,2.001e-05,2]
[420338985,1775997416310,500.0,2.001e-05,2]
[420338986,1775997416348,500.0,2.001e-05,2]
[420338987,1775997416409,500.0,2.001e-05,2]
[420338988,1775997416456,433.38,2.001e-05,2]
[420339074,1775998238202,-2829.6347127,7.841e-05,2]
[420339075,1775998238417,-1004.70752779,7.841e-05,2]
[420339076,1775998240890,-1165.65775951,7.841e-05,2]
[420339077,1775998240899,-530.0,7.841e-05,2]
[420339078,1775998240919,-5000.0,7.92e-05,2]
[420339079,1775998240936,-1000.33,8e-05,2]
[420339080,1775998240945,-300.0,8.362e-05,2]
[420339081,1775998240955,-1993.69947874,8.515e-05,2]
[420339082,1775998240967,-3993.81403782,8.615e-05,2]
[420339083,1775998240980,-4212.82240068,8.715e-05,2]
[420339084,1775998240998,-420.0,9.198e-05,2]
[420339085,1775998241008,-4113.0584841,9.577e-05,2]
[420339087,1775998241018,-364.34639612,9.6e-05,2]
[420339089,1775998241036,-251.58866327,9.6e-05,2]
[420339091,1775998241045,-546.0,0.00010118,2]
[420339092,1775998241055,-177.0,0.0001014,2]
[420339093,1775998241064,-4856.00058649,0.00010286,2]
[420339094,1775998241083,-760.5632016,0.0001033,2]
[420339095,1775998241097,-600.0,0.00010536,2]
[420339096,1775998241106,-151.0,0.00010536,2]
[420339097,1775998241119,-246.49576061,0.00010637,2]
[420339098,1775998241129,-984.99705941,0.00010637,2]
[420339099,1775998241140,-286.38847465,0.00010749,2]
[420339100,1775998241149,-1144.40834469,0.00010749,2]
[420339101,1775998241163,-160.0,0.000112,2]
[420339102,1775998241173,-278.93553505,0.00011245,2]
[420339103,1775998241192,-723.37028179,0.00011245,2]
[420339104,1775998241201,-760.5632016,0.00011583,2]
[420339105,1775998241220,-720.0,0.00011589,2]
[420339106,1775998241230,-5177.58967945,0.00011608,2]
[420339107,1775998241249,-461.545819,0.00011761,2]
[420339108,1775998241260,-160.0,0.000118,2]
[420339109,1775998241270,-160.0,0.000118,2]
[420339110,1775998241283,-500.0,0.00011998,2]
[420339111,1775998241302,-500.0,0.00011998,2]
[420339112,1775998241313,-500.0,0.00011998,2]
[420339113,1775998241323,-289.04817158,0.00011998,2]
[420339114,1775998241345,-256.29892235,0.00011998,2]
[420339115,1775998241354,-510.82760992,0.00011998,2]
[420339116,1775998241373,-500.0,0.00011998,2]
[420339117,1775998241382,-423.68124294,0.00011999,2]
[420339118,1775998241396,-2770.48410251,0.00012,2]
[420339125,1775998246117,-12652.82589749,0.00012,2]
[420339126,1775998246130,-160.0,0.00012,2]
[420339127,1775998246142,-160.0,0.00012,2]
[420339128,1775998246154,-160.0,0.00012,3]
[420339129,1775998246164,-204.0,0.0001214,2]
[420339130,1775998246173,-461.545819,0.00012256,2]
[420339131,1775998246187,-162.0,0.000124,2]
[420339132,1775998246200,-215.3158249,0.00012434,2]
[420339134,1775998246209,-165.806354,0.00012601,2]